Cogmind - Beta 11 @@@ ROGUE MODE // 2022.03.23 @ 01:20:27 Player: albenzo Result: Destroyed by H-81 Overseer with Heavy Linear Accelerator Performance ------------- Evolutions (8) 4000 Regions Visited (21) 4200 Robots Destroyed (131) 655 Value Destroyed (7432) 7432 Prototype IDs (21) 420 Alien Tech Used (3) 600 Bonus (5715) 5715 TOTAL SCORE: 23022 Bonus ------- Triggered High Security 500 High Alert Combat Kills 1457 Follower Combat Kills 1300 Met Imprinter 300 Was Imprinted 300 Met Sigix 2000 Friendly Fire -142 Cogmind --------- Core Integrity 0/1450 Matter 300/300 Energy 98/100 System Corruption 42% Temperature Cool (0) Movement Core (50) Location -2/Section 7 Parts ------- > --- POWER (2) -------- (None) > --- PROPULSION (6) --- (None) > --- UTILITY (12) ----- Targeting Computer Advanced Target Analyzer Advanced Target Analyzer Advanced Target Analyzer Advanced Target Analyzer > --- WEAPON (3) ------- (None) > --- INVENTORY (5) ---- Dispersion Rifle Dispersion Rifle Dispersion Rifle Sigix Containment Pod Peak State ------------ > --- POWER ------------ Quantum Reactor Light Quantum Reactor > --- PROPULSION ------- Centrium Heavy Treads Centrium Heavy Treads Centrium Heavy Treads > --- UTILITY ---------- Advanced Heat Sink Advanced Heat Sink Experimental Cooling System Huge Storage Unit Matter Compressor Targeting Computer Advanced Targeting Computer Advanced Target Analyzer Advanced Target Analyzer Advanced Target Analyzer Advanced Target Analyzer Improved Transmission Jammer > --- WEAPON ----------- Improved Matter Neutralizer Sigix Terminator > --- INVENTORY -------- Micro Antimatter Reactor Quantum Reactor Centrium Heavy Treads Biometal Heavy Treads Biometal Heavy Treads Advanced Heat Sink Advanced Heat Sink Quantum Rifle Enhanced Quantum Rifle Phase Cannon Enhanced Nova Cannon Enhanced Nova Cannon Core Cannon Power Maul Sigix Containment Pod Sigix Containment Pod [Rating: 191] Favorites ----------- Power Quantum Reactor Engine Makeshift Power Source Power Core Light Nuclear Core Reactor Quantum Reactor Propulsion Improved Carbon-fiber Leg Treads Centrium Heavy Treads Leg Improved Carbon-fiber Leg Wheel Armored Wheel Hover Unit Antigrav System Flight Unit Cesium-ion Thruster Utility Medium Armor Plating Device Advanced Heat Sink Storage Huge Storage Unit Processor Targeting Computer Protection Medium Armor Plating Weapon Assault Cannon Energy Gun Cooled Pulse Rifle Energy Cannon Enhanced Nova Cannon Ballistic Gun Assault Rifle Ballistic Cannon Assault Cannon Launcher Heavy Rocket Launcher Impact Weapon Power Maul Slashing Weapon Katana Build | -11 -10 -10 -10 -9 -8 -7 -7 -7 -7 -6 -6 -6 -6 -5 -5 -5 -4 -3 -2 -2 -2 ------- Run | Scr Mat Min Exi Min Mat Fac Low Low Zio Pro Fac Low Low Fac Upp Upp Fac Res Res Qua Sec Slots Evolved 16 | . . . . . 4 2 . . . . 2 . . 2 . . 2 2 2 . . Power 1 | . . . . . . . . . . . . . . . . . . . 1 . . Propulsion 4 | . . . . . 2 . . . . . . . . 1 . . . 1 . . . Utility 10 | . . . . . 2 2 . . . . 2 . . 1 . . 1 1 1 . . Weapon 1 | . . . . . . . . . . . . . . . . . 1 . . . . Parts Attached 268 | 7 6 . . . 22 6 6 4 7 5 6 15 1 26 8 2 22 27 29 69 . Power 28 | 1 2 . . . 2 . 1 . . 1 . 1 . 3 . . . 4 4 9 . Engine 11 | 1 2 . . . 2 . 1 . . 1 . 1 . 3 . . . . . . . Core 2 | . . . . . . . . . . . . . . . . . . 1 1 . . Reactor 15 | . . . . . . . . . . . . . . . . . . 3 3 9 . Propulsion 71 | 2 3 . . . 10 2 . 1 . 2 2 6 1 2 6 2 9 7 4 12 . Treads 30 | . . . . . . . . . . . . . . 1 2 1 4 7 4 11 . Leg 29 | 2 3 . . . 10 2 . 1 . 2 2 6 1 . . . . . . . . Wheel 10 | . . . . . . . . . . . . . . . 4 1 5 . . . . Hover 1 | . . . . . . . . . . . . . . 1 . . . . . . . Flight 1 | . . . . . . . . . . . . . . . . . . . . 1 . Utility 109 | 2 . . . . 6 4 5 1 6 2 4 5 . 14 2 . 10 12 17 19 . Device 61 | 1 . . . . . 2 2 . 2 1 2 1 . 7 2 . 9 9 11 12 . Storage 17 | 1 . . . . . . . 1 1 . . 2 . 5 . . 1 2 2 2 . Processor 16 | . . . . . 2 1 3 . . . 1 . . 2 . . . . 4 3 . Hackware . | . . . . . . . . . . . . . . . . . . . . . . Protection 15 | . . . . . 4 1 . . 3 1 1 2 . . . . . 1 . 2 . Artifact . | . . . . . . . . . . . . . . . . . . . . . . Weapon 60 | 2 1 . . . 4 . . 2 1 . . 3 . 7 . . 3 4 4 29 . Energy Gun 15 | . . . . . . . . . . . . . . 2 . . 2 3 . 8 . Energy Cannon 19 | . . . . . . . . . . . . . . . . . 1 . 4 14 . Ballistic Gun 6 | 2 1 . . . . . . . . . . 2 . 1 . . . . . . . Ballistic Cannon 8 | . . . . . 3 . . 2 1 . . 1 . 1 . . . . . . . Launcher 3 | . . . . . . . . . . . . . . . . . . 1 . 2 . Special Weapon . | . . . . . . . . . . . . . . . . . . . . . . Impact Weapon 6 | . . . . . . . . . . . . . . 2 . . . . . 4 . Slashing Weapon 3 | . . . . . 1 . . . . . . . . 1 . . . . . 1 . Piercing Weapon . | . . . . . . . . . . . . . . . . . . . . . . Special Melee Weapon . | . . . . . . . . . . . . . . . . . . . . . . Unidentified Prototypes 13 | . 1 . . . . . . . 2 . 1 . . 3 . . 1 . 1 4 . Corrupted Parts 4 | . . . . . . . . . . . 1 . . . 2 . . . . 1 . System Corruption 13 | . . . . . . . . . . . 3 . . . 2 . . . . 8 . Parts Lost 97 | . . . . . 2 1 1 . . 2 2 11 . 22 2 . 3 9 8 34 . Power 9 | . . . . . . . . . . . . 1 . 3 . . . 1 . 4 . Propulsion 26 | . . . . . 1 . . . . 1 1 4 . 5 . . . 3 1 10 . Utility 42 | . . . . . 1 1 1 . . 1 1 4 . 9 2 . 2 3 6 11 . Weapon 20 | . . . . . . . . . . . . 2 . 5 . . 1 2 1 9 . Highest Loss Streak 16 | . . . . . 1 1 1 . . 2 2 7 . 11 1 . 1 4 3 16 . To Critical Strikes 2 | . . . . . . . . . . . . . . . . . . 2 . . . Average Slot Usage (%) 92 | . 99 100 100 100 98 99 99 100 99 100 99 96 100 61 89 100 95 85 91 81 21 Engine 5 | . 13 14 14 14 8 7 7 7 7 7 6 6 6 3 5 5 5 1 . . . Reactor 1 | . . . . . . . . . . . . . . . . . . 1 7 7 . Treads 4 | . . . . . . . . . . . . . . 2 9 5 6 15 19 12 . Leg 18 | . 28 28 28 28 35 30 30 30 30 30 26 23 26 3 . . . . . . . Wheel 1 | . . . . . . . . . . . . . . . 8 23 15 . . . . Device 15 | . 14 14 14 14 3 7 6 7 13 15 27 17 6 13 22 23 27 30 25 17 . Storage 9 | . 14 14 14 14 9 7 7 7 7 7 6 12 20 8 11 11 10 12 10 7 . Processor 11 | . . . . . 14 13 15 15 8 7 8 13 13 14 17 17 13 5 11 21 21 Protection 6 | . . . . . 9 15 15 15 14 14 8 7 13 1 . . . . 1 1 . Energy Gun 2 | . . . . . . . . . . . . . . 5 11 11 14 8 4 3 . Energy Cannon 1 | . . . . . . . . . . . . . . . . . . 4 7 7 . Ballistic Gun 3 | . 28 28 28 28 1 . . . . . . 4 6 1 . . . . . . . Ballistic Cannon 6 | . . . . . 16 15 15 15 15 15 13 7 6 . . . . . . . . Naked Turns . | . . . . . . . . . . . . . . . . . . . . . . Heaviest Build 221 | 14 17 17 17 17 31 40 40 42 81 81 83 99 99 122 117 116 129 143 175 221 . Greatest Support 240 | 20 26 26 26 26 72 72 72 74 74 76 73 71 68 70 70 48 163 210 240 240 3 Greatest Overweight (x) 20 | 1 . . . . . . . . 1 1 1 1 1 20 9 2 5 . 1 1 . Average Overweight (x) . | . . . . . . . . . . . 1 1 1 . 3 2 1 . . . . Largest Inventory Capacity 25 | 8 8 8 8 8 8 8 8 10 20 20 20 20 20 25 25 25 25 25 25 25 5 Average Capacity 16 | 7 8 8 8 8 8 8 8 8 17 20 20 20 20 15 25 25 25 25 25 24 5 Most Carried 25 | 6 8 8 8 8 8 8 8 10 20 20 18 15 18 18 25 25 25 25 25 25 5 Average Carried 14 | 4 7 8 8 8 7 7 7 8 16 19 16 11 15 9 18 24 24 24 24 21 4 Final Capacity 25 | 8 8 8 8 8 8 8 8 10 20 20 20 20 20 25 25 25 25 25 25 5 5 Final Carried 25 | 6 8 8 8 8 8 8 8 10 20 19 15 15 18 12 25 25 24 25 25 5 5 Class Distribution -------------------- 36% | Derelict-Mutant 33% | Mutant 16% | Scavenger-Gunner 5% | Scavenger-Mutant 3% | Scavenger-Tank Dominant Class ---------------- Mutant | -10/Materials Mutant | -10/Mines Mutant | -10/Exiles Mutant | -9/Mines Mutant | -8/Materials Mutant | -7/Factory Derelict-Mutant | -7/Lower Caves Derelict-Mutant | -7/Lower Caves Derelict-Mutant | -7/Zion Derelict-Mutant | -6/Proximity Caves Derelict-Mutant | -6/Factory Derelict-Mutant | -6/Lower Caves Derelict-Mutant | -6/Lower Caves Mutant | -5/Factory Scavenger-Mutant | -5/Upper Caves Scavenger-Mutant | -5/Upper Caves Scavenger-Gunner | -4/Factory Scavenger-Tank | -3/Research Scavenger-Gunner | -2/Research Scavenger-Gunner | -2/Quarantine Mutant | -2/Section 7 Resources | -11 -10 -10 -10 -9 -8 -7 -7 -7 -7 -6 -6 -6 -6 -5 -5 -5 -4 -3 -2 -2 -2 ----------- Run | Scr Mat Min Exi Min Mat Fac Low Low Zio Pro Fac Low Low Fac Upp Upp Fac Res Res Qua Sec Matter Collected 5013 | 229 205 64 . 11 420 132 421 101 76 290 110 345 109 286 420 . 179 458 449 708 . Remotely 131 | . . . . . . . . . . . . . . 131 . . . . . . . Salvage Created 6820 | 54 273 27 . . 268 26 86 . . 286 18 378 . 353 300 . 282 948 1301 2220 . Parts 258 | 9 16 2 . . 12 1 . . . 9 1 14 . 10 6 . 9 32 60 77 . Haulers Intercepted 1 | . . . . . . . . . . . . . . . . . . . . 1 . Recyclers Shooed 3 | . . . . . . . . . . . . . . . . . 1 . 2 . . Parts Field Recycled . | . . . . . . . . . . . . . . . . . . . . . . Retrieved Matter . | . . . . . . . . . . . . . . . . . . . . . . Parts Self-Destructed 29 | . . . . . . . 1 4 . 12 . 9 . . 2 1 . . . . . Prevented 9 | . . . . . . . 2 . . 5 . . . . . 2 . . . . . Kills | -11 -10 -10 -10 -9 -8 -7 -7 -7 -7 -6 -6 -6 -6 -5 -5 -5 -4 -3 -2 -2 -2 ------- Run | Scr Mat Min Exi Min Mat Fac Low Low Zio Pro Fac Low Low Fac Upp Upp Fac Res Res Qua Sec Combat Hostiles Destroyed 115 | . 8 1 . . 11 2 3 . . 6 1 9 . 4 6 . 5 15 13 31 . Melee 4 | . . . . . 2 . . . . . . . . 2 . . . . . . . Guns 42 | . 8 1 . . . . . . . . . 5 . 1 6 . 4 1 2 14 . Cannons 49 | . . . . . 9 2 3 . . 6 1 4 . 1 . . 1 5 8 9 . AOE 10 | . . . . . . . . . . . . . . . . . . 5 . 5 . Classes Destroyed 17 | 2 2 . . . 2 1 . . . 1 . 1 . 2 . . . 1 1 4 . Worker 5 | 1 . . . . 2 . . . . . . . . 1 . . . . . 1 . Builder 3 | . . . . . . . . . . . . . . . . . . . . 3 . Tunneler 2 | 2 . . . . . . . . . . . . . . . . . . . . . Hauler 1 | . . . . . . . . . . . . . . . . . . . . 1 . Recycler 3 | . . . . . . . . . . . . . . 1 . . . . 2 . . Mechanic 1 | . . . . . . . . . . . . . . 1 . . . . . . . Operator 1 | . . . . . . . . . . . . . . . . . . . . 1 . Swarmer 10 | . 3 . . . 3 . 1 . . . . 3 . . . . . . . . . Grunt 46 | . 5 1 . . 4 1 1 . . 4 . 5 . . . . 1 4 2 18 . Brawler 3 | . . . . . . . . . . 2 . . . . . . . . . 1 . Duelist 4 | . . . . . . . . . . . . . . . . . . 1 . 3 . Protector 1 | . . . . . . . . . . . . . . . . . . . . 1 . Sentry 12 | . . . . . 2 . 1 . . . . 1 . . 1 . 1 6 . . . Hunter 10 | . . . . . 2 . . . . . 1 . . 2 1 . . 4 . . . Programmer 21 | . . . . . . 1 . . . . . . . 2 . . 3 . 10 5 . Behemoth 1 | . . . . . . . . . . . . . . . . . . . 1 . . Lightning 3 | . . . . . . . . . . . . . . . . . . . . 3 . Samaritan 1 | . . . . . . . . . . . . 1 . . . . . . . . . Thug 1 | . . . . . . . . . . . . . . . 1 . . . . . . Savage 3 | . . . . . . . . . . . . . . . 3 . . . . . . Best Kill Streak 12 | 3 4 1 . . 4 1 3 . . 2 1 3 . 4 4 . 3 6 3 12 . Combat Bots Only 11 | . 4 1 . . 4 1 3 . . 2 1 3 . 2 4 . 3 6 3 11 . Max Kills in Single Turn 7 | 2 1 1 . . 2 1 1 . . 1 1 1 . 1 1 . 1 2 1 7 . Gunslinging . | . . . . . . . . . . . . . . . . . . . . . . Exploded 5 | . . . . . . . . . . . . . . . . . . 1 . 5 . Melee 1 | . . . . . 1 . . . . . . . . 1 . . . . . . . Uniques/NPCs Destroyed . | . . . . . . . . . . . . . . . . . . . . . . Combat | -11 -10 -10 -10 -9 -8 -7 -7 -7 -7 -6 -6 -6 -6 -5 -5 -5 -4 -3 -2 -2 -2 -------- Run | Scr Mat Min Exi Min Mat Fac Low Low Zio Pro Fac Low Low Fac Upp Upp Fac Res Res Qua Sec Damage Taken 22016 | . 295 172 . . 880 239 362 14 . 487 421 875 75 2122 391 . 624 2346 1188 11051 474 Core 2463 | . 27 25 . . 42 28 18 . . 20 . 85 10 427 20 . 71 157 25 1044 464 Absorbed by Shields . | . . . . . . . . . . . . . . . . . . . . . . Reduced by Siege Mode 1521 | . . . . . . . . . . . . . . . 9 . . 129 . 1383 . Redirected to Shielding 107 | . . . . . . . . . . . . . . . . . . . . 107 . Regen/Repaired (Parts) 262 | . 65 . . . 62 . . . . . . . . . . . 135 . . . . Core Remaining (%) 85 | 100 . . . 79 92 . . . . 90 . . 88 . . 55 93 87 . . . Volleys Fired 377 | 10 26 6 . . 37 15 8 . . 19 9 29 10 20 16 . 12 36 31 93 . Largest 3 | 2 2 2 . . 2 2 2 . . 2 2 2 2 2 2 . 3 3 3 3 . Hottest 353 | 40 40 40 . . 88 88 88 . . 101 101 101 81 96 120 . 218 225 285 353 . Shots Fired 860 | 20 52 12 1 . 74 31 16 . . 38 18 57 20 37 28 . 37 86 93 240 . Gun 404 | 20 52 12 1 . . . . . . . . 28 10 15 28 . 35 43 30 130 . Cannon 442 | . . . . . 74 31 16 . . 38 18 29 10 22 . . 2 30 63 109 . Launcher 14 | . . . . . . . . . . . . . . . . . . 13 . 1 . Special . | . . . . . . . . . . . . . . . . . . . . . . Kinetic 376 | 20 52 12 1 . 74 31 16 . . 38 18 57 20 37 . . . . . . . Thermal 471 | . . . . . . . . . . . . . . . 28 . 37 73 93 240 . Explosive 13 | . . . . . . . . . . . . . . . . . . 13 . . . Electromagnetic . | . . . . . . . . . . . . . . . . . . . . . . Robot Hit Streak 37 | 6 5 9 . . 8 4 9 . . 13 4 7 2 9 28 . 19 18 13 37 . Robot Miss Streak 7 | 3 7 1 . . 4 3 1 . . 6 4 7 6 4 1 . 2 2 2 1 . Penetration Max 1 | . . . . . . . . . . 1 . . . . . . . . . . . Secondary Targets 4 | . . . . . . . . . . . . . . . . . . . . 4 . Max Gunslinging Chain 1 | . . . . . . . . . . . . . . . . . . . . 1 . Shots Hit Robots 624 | 13 31 10 . . 48 19 13 . . 17 8 34 5 31 26 . 29 69 68 203 . Core Hits 270 | 4 17 4 . . 16 4 5 . . 8 3 22 . 18 18 . 14 43 21 73 . Critical Kills 13 | . . . . . . . . . . 2 1 1 . . . . . 2 4 3 . Critical Parts Destroyed 18 | . 1 . . . . . . . . 5 2 1 . 4 . . . . 4 1 . Critical Strikes 50 | . 1 . . . 1 . 1 . . 9 3 2 . 4 . . 3 3 9 14 . Burn 13 | . . . . . . . . . . . . . . . . . 3 . . 10 . Meltdown 7 | . . . . . . . . . . . . . . . . . . 1 3 3 . Destroy 23 | . 1 . . . . . . . . 7 3 2 . 1 . . . 2 6 1 . Blast 4 | . . . . . 1 . 1 . . 2 . . . . . . . . . . . Smash 3 | . . . . . . . . . . . . . . 3 . . . . . . . Melee Attacks 30 | . . . . . 5 . . . . . . . . 20 . . . . . 5 . Impact 23 | . . . . . . . . . . . . . . 18 . . . . . 5 . Slashing 7 | . . . . . 5 . . . . . . . . 2 . . . . . . . Piercing . | . . . . . . . . . . . . . . . . . . . . . . Sneak Attacks 3 | . . . . . . . . . . . . . . 3 . . . . . . . Combat Hostiles . | . . . . . . . . . . . . . . . . . . . . . . Follow-up Attacks . | . . . . . . . . . . . . . . . . . . . . . . Damage Inflicted 25608 | 156 308 104 . . 1186 456 311 . . 646 136 827 104 913 752 . 936 2644 2637 13471 21 Guns 7928 | 156 308 104 . . . . . . . . . 524 67 183 752 . 851 813 665 3505 . Cannons 9374 | . . . . . 1048 456 311 . . 646 136 303 37 194 . . 85 788 1972 3398 . Explosions 7611 | . . . . . . . . . . . . . . . . . . 1043 . 6568 . Melee 674 | . . . . . 138 . . . . . . . . 536 . . . . . . . Ramming 21 | . . . . . . . . . . . . . . . . . . . . . 21 Kinetic 4473 | 156 308 104 . . 1048 456 311 . . 646 136 827 104 377 . . . . . . . Thermal 19397 | . . . . . . . . . . . . . . . 752 . 936 1601 2637 13471 . Explosive 1043 | . . . . . . . . . . . . . . . . . . 1043 . . . Electromagnetic . | . . . . . . . . . . . . . . . . . . . . . . Impact 491 | . . . . . . . . . . . . . . 491 . . . . . . . Slashing 183 | . . . . . 138 . . . . . . . . 45 . . . . . . . Piercing . | . . . . . . . . . . . . . . . . . . . . . . Highest Corruption 42 | . 1 1 1 1 . 3 3 3 3 7 3 3 3 6 9 9 6 . 8 42 42 Average Corruption 6 | . 1 1 1 1 . 2 3 3 3 7 3 3 3 5 6 9 3 . 6 18 42 Corruption Purged 7 | . . . . . . . . . . . . . . . . . . . . 7 . Corruption Blocked 28 | . . . . . . . . . . . . . . . . . . . 28 . . Effects 237 | . 1 . 3 2 . 6 18 16 4 6 1 19 2 22 18 1 11 . 22 81 4 Message Errors 60 | . . . . . . 2 4 4 1 2 1 3 . 5 6 . 3 . 10 18 1 Matter Fused 59 | . . . 1 . . 2 7 5 1 4 . 5 1 4 3 . 3 . 3 19 1 Heat Flow Errors 30 | . . . . 1 . . 3 3 1 . . 4 . 8 2 . 2 . 1 4 1 Energy Discharges 28 | . 1 . 1 . . 1 3 1 1 . . 4 . 3 1 . . . 3 9 . Parts Rejected 1 | . . . . . . . . . . . . . . . . . . . . 1 . Data Loss (minor) 14 | . . . . 1 . . 1 3 . . . 2 . 1 1 . 2 . . 3 . Data Loss (major) 9 | . . . . . . . . . . . . 1 1 1 . 1 . . 2 2 1 Misfires 10 | . . . 1 . . 1 . . . . . . . . 2 . 1 . 1 4 . Alerts 5 | . . . . . . . . . . . . . . . 1 . . . 1 3 . Misdirections 2 | . . . . . . . . . . . . . . . . . . . . 2 . Weapon Failures 19 | . . . . . . . . . . . . . . . 2 . . . 1 16 . Overload Shots . | . . . . . . . . . . . . . . . . . . . . . . Overflow Damage 1315 | . . . . . 35 23 . . . . . . . 242 . . 46 26 82 861 . Projectiles 331 | . . . . . 5 23 . . . . . . . . . . 46 . 82 175 . Explosions 712 | . . . . . . . . . . . . . . . . . . 26 . 686 . Melee 272 | . . . . . 30 . . . . . . . . 242 . . . . . . . Knockbacks 26 | . . . . . 6 8 1 . . 1 2 2 2 4 . . . . . . . Impact 1 | . . . . . . . . . . . . . . 1 . . . . . . . Kinetic 25 | . . . . . 6 8 1 . . 1 2 2 2 3 . . . . . . . Secondary . | . . . . . . . . . . . . . . . . . . . . . . Self-Inflicted Damage 1054 | . . . . . . . . . . . . . . . . . . . . 1044 10 Shots 2 | . . . . . . . . . . . . . . . . . . . . 2 . Rammed 2 | . . . . . . . . . . . . . . . . . . . . . 2 Targets Rammed 2 | . . . . . . . . . . . . . . . . . . . . . 2 Kicked . | . . . . . . . . . . . . . . . . . . . . . . Crushed . | . . . . . . . . . . . . . . . . . . . . . . Highest Temperature 527 | . 18 35 1 265 333 207 356 223 138 527 30 234 90 226 263 . 143 408 179 221 196 Average Temperature 101 | . 8 18 1 135 112 87 145 103 68 177 12 75 45 95 137 . 25 153 36 73 122 Received Heat Transfer 3112 | . 123 69 . . 270 81 108 . . 153 . 231 . 18 67 . 42 327 84 1467 72 Effects 5 | . . . . . . . 1 . . 3 . . . . . . . 1 . . . Shutdowns 2 | . . . . . . . . . . 2 . . . . . . . . . . . Energy Bleed 1 | . . . . . . . 1 . . . . . . . . . . . . . . Damage (minor) 2 | . . . . . . . . . . 1 . . . . . . . 1 . . . Siege Activations 12 | . . . . . . . . . . . . . . . 1 . . 1 . 10 . Total Turns 314 | . . . . . . . . . . . . . . . 5 . . 29 . 280 . Longest Duration 76 | . . . . . . . . . . . . . . . 5 . . 29 . 76 . Robots Corrupted . | . . . . . . . . . . . . . . . . . . . . . . Combat Hostiles . | . . . . . . . . . . . . . . . . . . . . . . Parts Fried 3 | . . . . . . . . . . . . . . 3 . . . . . . . Impact Corruptions 6 | . . . . . . . . . . . . . . 6 . . . . . . . Robots Melted 10 | . . . . . . . . . . . . . . . . . . 4 3 3 . Combat Hostiles 10 | . . . . . . . . . . . . . . . . . . 4 3 3 . Parts Melted 40 | . . . . . 1 . . . . . . . . . 2 . 5 7 13 12 . Heat Transferred 16339 | . . . . . . . . . . . . . . . 1331 . 1676 2545 2627 8160 . Parts Sabotaged 3 | . . . . . . . . . . . . . . . . . . . . 3 . Parts Stolen 1 | . . . . . . . . . . . . . 1 . . . . . . . . Parts Stripped . | . . . . . . . . . . . . . . . . . . . . . . Power Chain Reactions 1 | . . . . . . . . . . . . . . . . . . . . 1 . Missiles Intercepted . | . . . . . . . . . . . . . . . . . . . . . . Alert | -11 -10 -10 -10 -9 -8 -7 -7 -7 -7 -6 -6 -6 -6 -5 -5 -5 -4 -3 -2 -2 -2 ------- Run | Scr Mat Min Exi Min Mat Fac Low Low Zio Pro Fac Low Low Fac Upp Upp Fac Res Res Qua Sec Peak Influence 1885 | 15 214 72 . . 155 104 . . . . 106 . . 275 . . 105 357 238 1885 1175 Initial 1100 | . 9 16 . . . 24 . . . . 100 . . . . . 9 29 146 88 1100 Average 252 | 4 70 49 . . 71 55 . . . . 98 . . 85 . . 32 185 108 1021 1140 Maximum Alert Level 5 | . 1 . . . . . . . . . . . . 1 . . . 1 1 5 4 Low Security (%) 80 | 100 99 100 . 100 100 100 . . . . 100 . . 97 . . 100 50 93 17 . Level 1 9 | . . . . . . . . . . . . . . 2 . . . 49 6 27 . Level 2 . | . . . . . . . . . . . . . . . . . . . . . . Level 3 . | . . . . . . . . . . . . . . . . . . . . . . Level 4 3 | . . . . . . . . . . . . . . . . . . . . 17 100 Level 5 2 | . . . . . . . . . . . . . . . . . . . . 16 . High Security 3 | . . . . . . . . . . . . . . . . . . . . 21 . Max Security . | . . . . . . . . . . . . . . . . . . . . . . Squads Dispatched 34 | . . . . . 3 2 . . . . 1 . . 3 . . 1 3 3 15 3 Investigation 3 | . . . . . 1 . . . . . . . . . . . . . . 1 1 Extermination 10 | . . . . . . 1 . . . . . . . 2 . . 1 . 3 3 . Reinforcement 6 | . . . . . 2 1 . . . . 1 . . 1 . . . . . . 1 Assault 12 | . . . . . . . . . . . . . . . . . . . . 11 1 Garrison 3 | . . . . . . . . . . . . . . . . . . 3 . . . Intercept . | . . . . . . . . . . . . . . . . . . . . . . Searches Triggered . | . . . . . . . . . . . . . . . . . . . . . . Construction Impeded 1 | . . . . . . . . . . . . . . 1 . . . . . . . Haulers Reinforced . | . . . . . . . . . . . . . . . . . . . . . . Active Scanning Responses . | . . . . . . . . . . . . . . . . . . . . . . Cargo Convoy Interrupts . | . . . . . . . . . . . . . . . . . . . . . . Stealth | -11 -10 -10 -10 -9 -8 -7 -7 -7 -7 -6 -6 -6 -6 -5 -5 -5 -4 -3 -2 -2 -2 --------- Run | Scr Mat Min Exi Min Mat Fac Low Low Zio Pro Fac Low Low Fac Upp Upp Fac Res Res Qua Sec Distress Signals 9 | . 3 . . . 2 1 . . . . . . . 1 . . . 1 . . 1 Communications Jammed 24 | . . . . . . . . . . . . . . . . . . . 2 22 . Distress Signals 22 | . . . . . . . . . . . . . . . . . . . 2 20 . Times Spotted 236 | . 15 4 . . 18 10 3 1 . 18 2 9 1 17 6 . 7 16 19 71 19 Peak Tracking Total 20 | . 7 2 . . 4 4 2 1 . 6 1 3 1 4 4 . 3 6 4 16 20 Tactical Retreats 19 | . . . . . . 4 . 2 . 4 . . . 1 . . . 1 1 5 1 Traps | -11 -10 -10 -10 -9 -8 -7 -7 -7 -7 -6 -6 -6 -6 -5 -5 -5 -4 -3 -2 -2 -2 ------- Run | Scr Mat Min Exi Min Mat Fac Low Low Zio Pro Fac Low Low Fac Upp Upp Fac Res Res Qua Sec Traps Triggered 10 | . 2 . . . 1 . . . . . . . . . . . 4 . . 1 2 Indirectly . | . . . . . . . . . . . . . . . . . . . . . . Trap Hack Attempts . | . . . . . . . . . . . . . . . . . . . . . . Triggered . | . . . . . . . . . . . . . . . . . . . . . . Disarmed . | . . . . . . . . . . . . . . . . . . . . . . Reprogrammed . | . . . . . . . . . . . . . . . . . . . . . . Reused . | . . . . . . . . . . . . . . . . . . . . . . Traps Extracted . | . . . . . . . . . . . . . . . . . . . . . . Installed 5 | . . 5 . . . . . . . . . . . . . . . . . . . Triggered 5 | . . . . . . . 1 1 . 1 . . . . . 2 . . . . . Machines | -11 -10 -10 -10 -9 -8 -7 -7 -7 -7 -6 -6 -6 -6 -5 -5 -5 -4 -3 -2 -2 -2 ---------- Run | Scr Mat Min Exi Min Mat Fac Low Low Zio Pro Fac Low Low Fac Upp Upp Fac Res Res Qua Sec Machines Disabled 18 | . . . . . . 1 . . . . . . . . . . . . . 17 . Max in Single Turn 8 | . . . . . . 1 . . . . . . . . . . . . . 8 . Garrison Access 1 | . . . . . . . . . . . . . . . . . . . . . 1 Machines Sabotaged . | . . . . . . . . . . . . . . . . . . . . . . Garrisons Compromised . | . . . . . . . . . . . . . . . . . . . . . . Overloaded Fab Kills . | . . . . . . . . . . . . . . . . . . . . . . Hacking | -11 -10 -10 -10 -9 -8 -7 -7 -7 -7 -6 -6 -6 -6 -5 -5 -5 -4 -3 -2 -2 -2 --------- Run | Scr Mat Min Exi Min Mat Fac Low Low Zio Pro Fac Low Low Fac Upp Upp Fac Res Res Qua Sec Machines Accessed 33 | . 3 . 4 . 3 6 . 1 . . . . . 2 . . 4 1 3 5 1 Terminals 16 | . 2 . . . 2 3 . . . . . . . 1 . . 1 1 1 5 . Fabricators 3 | . . . . . . 1 . . . . . . . . . . 1 . 1 . . Repair Stations 4 | . 1 . . . 1 . . . . . . . . . . . 2 . . . . Recycling Units 2 | . . . . . . . . . . . . . . 1 . . . . 1 . . Scanalyzers 1 | . . . . . . 1 . . . . . . . . . . . . . . . Garrison Access 2 | . . . . . . 1 . . . . . . . . . . . . . . 1 Total Hacks 61 | . 6 . 4 . 7 15 . 1 . . . . . 4 . . 10 2 3 8 1 Successful 38 | . 3 . 4 . 5 11 . 1 . . . . . 1 . . 7 1 1 4 . Failed 23 | . 3 . . . 2 4 . . . . . . . 3 . . 3 1 2 4 1 Catastrophic 4 | . 1 . . . 1 . . . . . . . . . . . 1 . 1 . . Database Lockouts . | . . . . . . . . . . . . . . . . . . . . . . Manual 50 | . 4 . . . 4 3 . . . . 1 . . 6 . . 2 . 11 14 5 Terminals 29 | . 4 . . . 5 5 . . . . . . . 2 . . 2 2 1 8 . Fabricators 6 | . . . . . . 3 . . . . . . . . . . 2 . 1 . . Repair Stations 10 | . 2 . . . 2 . . . . . . . . . . . 6 . . . . Recycling Units 3 | . . . . . . . . . . . . . . 2 . . . . 1 . . Scanalyzers 5 | . . . . . . 5 . . . . . . . . . . . . . . . Garrison Access 3 | . . . . . . 2 . . . . . . . . . . . . . . 1 Terminal Hacks 20 | . 1 . 4 . 3 4 . 1 . . . . . . . . 1 1 1 4 . Record 7 | . . . 4 . . . . . . . . . . . . . . . . 3 . Part Schematic 1 | . . . . . 1 . . . . . . . . . . . . . . . . Open Door 3 | . . . . . . . . 1 . . . . . . . . . . 1 1 . Open DSF 3 | . . . . . . 1 . . . . . . . . . . 1 1 . . . Branch Access Points 2 | . 1 . . . . 1 . . . . . . . . . . . . . . . Alert Level 2 | . . . . . 1 1 . . . . . . . . . . . . . . . Locate Traps 1 | . . . . . . 1 . . . . . . . . . . . . . . . Registered Components 1 | . . . . . 1 . . . . . . . . . . . . . . . . Fabricator Hacks 1 | . . . . . . 1 . . . . . . . . . . . . . . . Load Schematic 1 | . . . . . . 1 . . . . . . . . . . . . . . . Repair Station Hacks 10 | . 2 . . . 2 . . . . . . . . . . . 6 . . . . Scan Component 5 | . 1 . . . 1 . . . . . . . . . . . 3 . . . . Repair 5 | . 1 . . . 1 . . . . . . . . . . . 3 . . . . Recycling Unit Hacks . | . . . . . . . . . . . . . . . . . . . . . . Scanalyzer 5 | . . . . . . 5 . . . . . . . . . . . . . . . Insert Component 2 | . . . . . . 2 . . . . . . . . . . . . . . . Analyze 3 | . . . . . . 3 . . . . . . . . . . . . . . . Garrison Access Hacks . | . . . . . . . . . . . . . . . . . . . . . . Unauthorized Hacks 2 | . . . . . . 1 . . . . . . . 1 . . . . . . . Terminals . | . . . . . . . . . . . . . . . . . . . . . . Fabricators . | . . . . . . . . . . . . . . . . . . . . . . Repair Stations . | . . . . . . . . . . . . . . . . . . . . . . Recycling Units 1 | . . . . . . . . . . . . . . 1 . . . . . . . Reject 1 | . . . . . . . . . . . . . . 1 . . . . . . . Scanalyzers . | . . . . . . . . . . . . . . . . . . . . . . Garrison Access 1 | . . . . . . 1 . . . . . . . . . . . . . . . Watchers 1 | . . . . . . 1 . . . . . . . . . . . . . . . Data Cores Recovered 1 | . . . . . . . . . . . . . . . . . . . . 1 . Used . | . . . . . . . . . . . . . . . . . . . . . . Hacking Detections 23 | . 3 . . . 3 5 . . . . . . . 2 . . 4 . 2 3 1 Full Trace Events 1 | . . . . . . . . . . . . . . . . . . . . 1 . Feedback Events . | . . . . . . . . . . . . . . . . . . . . . . Feedback Blocked . | . . . . . . . . . . . . . . . . . . . . . . Robot Schematics Acquired . | . . . . . . . . . . . . . . . . . . . . . . Robots Built . | . . . . . . . . . . . . . . . . . . . . . . Authchips . | . . . . . . . . . . . . . . . . . . . . . . Time . | . . . . . . . . . . . . . . . . . . . . . . Total Robot Build Rating . | . . . . . . . . . . . . . . . . . . . . . . Part Schematics Acquired 13 | . . . . . 1 2 . . . . . . . . . . . . 10 . . Parts Built . | . . . . . . . . . . . . . . . . . . . . . . Authchips . | . . . . . . . . . . . . . . . . . . . . . . Time . | . . . . . . . . . . . . . . . . . . . . . . Total Part Build Rating . | . . . . . . . . . . . . . . . . . . . . . . Parts Repaired 5 | . 1 . . . 1 . . . . . . . . . . . 3 . . . . Time 156 | . 32 . . . 32 . . . . . . . . . . . 92 . . . . Parts Recycled . | . . . . . . . . . . . . . . . . . . . . . . Recycled Matter . | . . . . . . . . . . . . . . . . . . . . . . Retrieved Matter . | . . . . . . . . . . . . . . . . . . . . . . Retrieved Components . | . . . . . . . . . . . . . . . . . . . . . . Parts Scanalyzed 2 | . . . . . . 2 . . . . . . . . . . . . . . . Part Schematics Acquired 2 | . . . . . . 2 . . . . . . . . . . . . . . . Parts Damaged . | . . . . . . . . . . . . . . . . . . . . . . Bothacking | -11 -10 -10 -10 -9 -8 -7 -7 -7 -7 -6 -6 -6 -6 -5 -5 -5 -4 -3 -2 -2 -2 ------------ Run | Scr Mat Min Exi Min Mat Fac Low Low Zio Pro Fac Low Low Fac Upp Upp Fac Res Res Qua Sec Used RIF Installer . | . . . . . . . . . . . . . . . . . . . . . . Robots Hacked . | . . . . . . . . . . . . . . . . . . . . . . Non-combat . | . . . . . . . . . . . . . . . . . . . . . . Combat . | . . . . . . . . . . . . . . . . . . . . . . Robot Hacks Applied . | . . . . . . . . . . . . . . . . . . . . . . Relay Couplers Released 1 | . . . . . . . . . . . . . . . . . . . . . 1 Machine Destruction 1 | . . . . . . . . . . . . . . . . . . . . . 1 Fabnet Peak Effective % . | . . . . . . . . . . . . . . . . . . . . . . Robots Rewired . | . . . . . . . . . . . . . . . . . . . . . . Allies Hacked 4 | . . . . . . . . . . . . . . . . . . . 3 1 . Hacks Repelled . | . . . . . . . . . . . . . . . . . . . . . . Allies | -11 -10 -10 -10 -9 -8 -7 -7 -7 -7 -6 -6 -6 -6 -5 -5 -5 -4 -3 -2 -2 -2 -------- Run | Scr Mat Min Exi Min Mat Fac Low Low Zio Pro Fac Low Low Fac Upp Upp Fac Res Res Qua Sec Total Allies 22 | . . 3 . . . . . . 4 . . . . 4 . . . . 9 2 . Largest Group 4 | . . 3 2 2 2 . . . 4 4 . . . 4 3 . . . 4 3 . Highest-Rated Group 319 | . . 40 32 32 32 . . . 157 157 . . . 111 84 . . . 319 319 . Highest-Rated Ally 122 | . . 16 16 16 16 . . . 41 41 . . . 31 28 . . . 122 122 . Zionite Dispatches 6 | . . . . . . . . . . . . . . 2 . . 1 . 3 . . Heavy 1 | . . . . . . . . . . . . . . . . . . . 1 . . Recon 1 | . . . . . . . . . . . . . . . . . 1 . . . . Fire 2 | . . . . . . . . . . . . . . 1 . . . . 1 . . Hacker 1 | . . . . . . . . . . . . . . . . . . . 1 . . Thermal Resupply 1 | . . . . . . . . . . . . . . 1 . . . . . . . Total Orders 3 | . . . . . . . . . . . 1 . . 1 . . . 1 . . . DROP 1 | . . . . . . . . . . . . . . 1 . . . . . . . EXPLORE 2 | . . . . . . . . . . . 1 . . . . . . 1 . . . Ally Attacks 178 | . . 10 . . 14 . . . . 59 . . . 19 6 . . . 36 34 . Total Damage 6017 | . . 128 . . 190 . . . . 1119 . . . 377 102 . . . 1870 2231 . Kills 35 | . . 2 . . 1 . . . . 9 . . . 7 . . . . 6 10 . Allies Corrupted 5 | . . . . . . . . . . . . . . . 1 . . . 2 2 . Allies Melted . | . . . . . . . . . . . . . . . . . . . . . . Intel | -11 -10 -10 -10 -9 -8 -7 -7 -7 -7 -6 -6 -6 -6 -5 -5 -5 -4 -3 -2 -2 -2 ------- Run | Scr Mat Min Exi Min Mat Fac Low Low Zio Pro Fac Low Low Fac Upp Upp Fac Res Res Qua Sec Robot Analysis Total . | . . . . . . . . . . . . . . . . . . . . . . Derelict Logs Recovered 8 | . . . . . . . 1 1 2 2 . 1 1 . . . . . . . . Drone Launches 3 | . . . . . . . . . . . 1 . . . . . . 2 . . . Drone Recoveries . | . . . . . . . . . . . . . . . . . . . . . . Zionite Intel Received 3 | . . . . . . . . . . . . . . . . . . . 1 2 . Component Stockpiles 1 | . . . . . . . . . . . . . . . . . . . . 1 . Prototype Schematics 1 | . . . . . . . . . . . . . . . . . . . 1 . . Depthwide Sectors/0 1 | . . . . . . . . . . . . . . . . . . . . 1 . Exploration | -11 -10 -10 -10 -9 -8 -7 -7 -7 -7 -6 -6 -6 -6 -5 -5 -5 -4 -3 -2 -2 -2 ------------- Run | Scr Mat Min Exi Min Mat Fac Low Low Zio Pro Fac Low Low Fac Upp Upp Fac Res Res Qua Sec Turns Passed 15348 | 154 686 433 602 154 877 876 685 917 1732 1012 224 884 113 1117 768 36 604 589 1324 1483 78 Spaces Moved 8966 | 94 434 329 502 129 503 614 532 726 1014 481 81 377 41 599 425 28 321 224 705 663 144 Core 513 | 6 . . . . . . . . . . . . . 242 . . . . . 121 144 Treads 1851 | . . . . . . . . . . . . . . 272 51 . 57 224 705 542 . Legs 5920 | 88 434 329 502 129 503 614 532 726 1014 481 81 377 41 69 . . . . . . . Wheels 666 | . . . . . . . . . . . . . . . 374 28 264 . . . . Hover 16 | . . . . . . . . . . . . . . 16 . . . . . . . Flight . | . . . . . . . . . . . . . . . . . . . . . . Fastest Speed 50 | 50 120 120 120 120 120 120 120 120 125 127 192 190 192 50 135 120 120 152 154 50 50 Average Speed 142 | 117 120 120 120 120 121 120 120 124 167 193 194 191 192 146 161 120 129 155 155 146 50 Slowest Speed 1050 | 120 120 120 120 120 125 120 120 125 195 200 197 192 192 1050 240 120 560 160 240 232 50 Overloaded Moves . | . . . . . . . . . . . . . . . . . . . . . . Propulsion Burnouts . | . . . . . . . . . . . . . . . . . . . . . . Robots Hopped . | . . . . . . . . . . . . . . . . . . . . . . Cave-ins Triggered . | . . . . . . . . . . . . . . . . . . . . . . Exploration Rate (%) 39 | 4 65 70 92 35 34 16 65 88 90 58 1 63 6 12 52 5 7 9 20 64 13 Regions Visited 21 Branch Regions 13 Pre-discovered Areas 3 | . . . . . . . . . 1 . . . . . . . . . . 2 . Known Exits Taken 9 | . 1 . . . 1 1 1 1 1 1 . 1 1 . . . . . . . . Unknown Exits Taken 12 | 1 . 1 1 1 . . . . . . 1 . . 1 1 1 1 1 1 1 . Scrap Searched 18 | . . 1 . 1 . . 3 3 3 2 . 2 1 . 2 . . . . . . Spaces Dug 6 | . . . . . . . . . . . . . . 6 . . . . . . . Terrain Destroyed 788 | . . . . . 10 1 . . . 8 6 11 7 18 . . . 59 7 661 . Melee 6 | . . . . . . . . . . . . . . 6 . . . . . . . Projectile 75 | . . . . . 10 1 . . . 8 6 11 7 12 . . . 3 7 10 . AOE 707 | . . . . . . . . . . . . . . . . . . 56 . 651 . Terrain Rammed . | . . . . . . . . . . . . . . . . . . . . . . Walls Destroyed . | . . . . . . . . . . . . . . . . . . . . . . Machines Disabled . | . . . . . . . . . . . . . . . . . . . . . . Actions | -11 -10 -10 -10 -9 -8 -7 -7 -7 -7 -6 -6 -6 -6 -5 -5 -5 -4 -3 -2 -2 -2 --------- Run | Scr Mat Min Exi Min Mat Fac Low Low Zio Pro Fac Low Low Fac Upp Upp Fac Res Res Qua Sec Total 10777 | 116 560 356 501 128 694 724 561 740 1056 527 130 480 56 764 473 31 481 398 877 973 151 Wait 795 | . 69 17 . . 96 82 14 3 9 13 34 53 2 74 12 . 101 88 55 73 . Move 8945 | 93 433 328 501 128 502 613 531 725 1013 480 80 376 40 598 424 27 320 223 704 662 144 Hop . | . . . . . . . . . . . . . . . . . . . . . . Pick Up 158 | 6 12 . . . 11 3 . 4 15 4 . 6 3 15 13 1 12 10 17 23 3 Fast Attach 104 | 7 2 . . . 7 3 2 . 5 . . 4 . 14 4 . 15 7 13 21 . Attach 101 | . 1 . . . 6 1 1 2 . 2 5 8 1 11 1 2 6 12 11 31 . Detach 32 | . . . . . 3 . 1 . 1 . 1 1 . 3 . . 1 5 9 7 . Swap 66 | . 3 . . . 9 2 3 2 2 3 1 3 . 1 3 . 1 8 5 20 . Drop 159 | . 14 . . . 18 5 1 4 11 6 . . . 8 . 1 13 9 29 38 2 Fire 377 | 10 26 6 . . 37 15 8 . . 19 9 29 10 20 16 . 12 36 31 93 . Melee 30 | . . . . . 5 . . . . . . . . 20 . . . . . 5 . Ram 2 | . . . . . . . . . . . . . . . . . . . . . 2 Kick . | . . . . . . . . . . . . . . . . . . . . . . Crush . | . . . . . . . . . . . . . . . . . . . . . . Escape Stasis . | . . . . . . . . . . . . . . . . . . . . . . Rewire 3 | . . . . . . . . . . . . . . . . . . . 3 . . Trap 5 | . . 5 . . . . . . . . . . . . . . . . . . . Miscellaneous . | . . . . . . . . . . . . . . . . . . . . . . Route ------- -11/Scrapyard -10/Materials (discovered 2 exits: [*Mat] / *Min) -10/Mines (discovered 2 exits: [*Mat] / *Exi) -10/Exiles -9/Mines (discovered 2 exits: *Mat x2) -8/Materials (discovered 2 exits: *Fac / *Sto) -7/Factory (discovered 2 exits: *Low x2) -7/Lower Caves -7/Lower Caves (discovered 2 exits: *Fac / *Zio) -7/Zion -6/Proximity Caves -6/Factory (discovered 3 exits: Fac x2 / [*Low]) -6/Lower Caves -6/Lower Caves -5/Factory -5/Upper Caves -5/Upper Caves -4/Factory -3/Research (discovered 2 exits: *Res / [*Tes]) -2/Research -2/Quarantine -2/Section 7 History --------- Turn | Location | Event 12 | -11/Scrapyard | Discovered new exit (range 14) 155 | -11/Scrapyard | Entered Materials 310 | -10/Materials | Build established: Mutant 353 | -10/Materials | Discovered new exit (range 3) 742 | -10/Materials | Repaired Imp. Aluminum Leg 770 | -10/Materials | Identified exit to Mines 841 | -10/Materials | Entered Mines 905 | -10/Mines | Assisted by bots powering up and referring to "LRC-V3" 960 | -10/Mines | Found a hidden stash of uninstalled traps 1195 | -10/Mines | Discovered new exit (range 8) 1265 | -10/Mines | Deemed a non-threat by the Exiles lab entrance 1266 | -10/Mines | Discovered new exit (range 5) 1274 | -10/Mines | Entered Exiles 1274 | -10/Exiles | Found Exiles lab abandoned 1274 | -10/Exiles | Accompanied by 2 allies 1865 | -10/Exiles | Discovered new exit (range 10) 1876 | -10/Exiles | Entered Mines 1876 | -9/Mines | Accompanied by 2 allies 2023 | -9/Mines | Discovered new exit (range 6) 2024 | -9/Mines | Discovered new exit (range 14) 2030 | -9/Mines | Entered Materials 2030 | -8/Materials | Accompanied by 2 allies 2030 | -8/Materials | Evolved 4 slots: Propulsion x2, Utility x2 2290 | -8/Materials | Discovered new exit (range 16) 2357 | -8/Materials | Identified exit to Storage 2610 | -8/Materials | Repaired Imp. Aluminum Leg 2885 | -8/Materials | Discovered new exit (range 9) 2906 | -8/Materials | Identified exit to Factory 2907 | -8/Materials | Entered Factory 2907 | -7/Factory | Evolved 2 slots: Utility x2 3068 | -7/Factory | Identified exit to Lower Caves 3783 | -7/Factory | Entered Lower Caves 3911 | -7/Lower Caves | Attracted the attention of an 0b10 checkpoint 4013 | -7/Lower Caves | Learned Factory trap positions 4334 | -7/Lower Caves | Build established: Derelict-Mutant 4448 | -7/Lower Caves | Discovered new exit (range 10) 4462 | -7/Lower Caves | Identified exit to Lower Caves 4468 | -7/Lower Caves | Entered another Lower Caves area 4479 | -7/Lower Caves | Discovered new exit (range 11) 4491 | -7/Lower Caves | Identified exit to Factory 4715 | -7/Lower Caves | Learned 8 Factory zone layouts 5289 | -7/Lower Caves | Spotted B-75 Beast 5369 | -7/Lower Caves | Discovered new exit (range 14) 5384 | -7/Lower Caves | Identified exit to Zion 5385 | -7/Lower Caves | Entered Zion 5489 | -7/Zion | Found Prototype Device 5489 | -7/Zion | Identified Bomb Factory No. 2 5563 | -7/Zion | Discovered new exit (range 16) 5580 | -7/Zion | Identified exit to Proximity Caves 5619 | -7/Zion | System corruption cleaned by Quarantine Array 5656 | -7/Zion | Learned Factory stockpile data 5673 | -7/Zion | Learned Factory terminal intel 5730 | -7/Zion | Found Prototype Device 5730 | -7/Zion | Identified Mobile Refinery Mk. CCLXVII 5897 | -7/Zion | Learned location of Data Miner (-6) 5998 | -7/Zion | Given A8's code to call for help 6661 | -7/Zion | Imprinted 6663 | -7/Zion | Declared Zion's savior 6839 | -7/Zion | Given the Hacking Drone Bay 6843 | -7/Zion | Found Prototype Device 7117 | -7/Zion | Entered Proximity Caves 7117 | -6/Proximity Caves | Accompanied by 4 allies 7216 | -6/Proximity Caves | Learned Factory non-interactive machine intel 7966 | -6/Proximity Caves | Attracted the attention of an 0b10 checkpoint 8129 | -6/Proximity Caves | Entered Factory 8129 | -6/Factory | Evolved 2 slots: Utility x2 8130 | -6/Factory | Identified exit to Factory 8130 | -6/Factory | Identified Hacking Drone Bay 8131 | -6/Factory | Loaded intel: 86 trap records 8133 | -6/Factory | Loaded intel: 238 non-interactive machine locations 8134 | -6/Factory | Loaded intel: 25 terminal locations 8169 | -6/Factory | Discovered new exit (range 15) 8353 | -6/Factory | Entered Lower Caves 8596 | -6/Lower Caves | Lost 4 parts (2n2w) 8726 | -6/Lower Caves | Attracted the attention of an 0b10 checkpoint 8799 | -6/Lower Caves | Lost 7 parts (1p2n4u) 8931 | -6/Lower Caves | Identified exit to Lower Caves 9237 | -6/Lower Caves | Entered another Lower Caves area 9237 | -6/Lower Caves | Discovered exit to Factory (range 13) 9263 | -6/Lower Caves | Imp. Carbon-fiber Leg stolen by Master Thief 9287 | -6/Lower Caves | Encountered a Warlord checkpoint 9325 | -6/Lower Caves | Learned Factory trap positions 9350 | -6/Lower Caves | Entered Factory 9350 | -5/Factory | Evolved 2 slots: Propulsion x1, Utility x1 9351 | -5/Factory | Loaded intel: 119 trap records 9553 | -5/Factory | Lost 11 parts (2p3n3u3w) 9722 | -5/Factory | Spotted B-75 Beast 9732 | -5/Factory | Lost 11 parts (1p2n6u2w) 9928 | -5/Factory | Zion Thermal Resupply teleported in 9983 | -5/Factory | Build established: Mutant 10005 | -5/Factory | Zion Fire squad teleported in 10448 | -5/Factory | Discovered new exit (range 7) 10467 | -5/Factory | Entered Upper Caves 10467 | -5/Upper Caves | Accompanied by 3 allies 10672 | -5/Upper Caves | Ambushed by wild Derelicts 10998 | -5/Upper Caves | Build established: Scavenger-Mutant 11001 | -5/Upper Caves | Attracted the attention of an 0b10 checkpoint 11217 | -5/Upper Caves | Discovered new exit (range 8) 11235 | -5/Upper Caves | Entered another Upper Caves area 11263 | -5/Upper Caves | Discovered new exit (range 6) 11271 | -5/Upper Caves | Entered Factory 11271 | -4/Factory | Evolved 2 slots: Utility x1, Weapon x1 11329 | -4/Factory | Repaired Adv. Cooling System 11508 | -4/Factory | Repaired Arm. Wheel 11541 | -4/Factory | Repaired Arm. Wheel 11562 | -4/Factory | Build established: Scavenger-Gunner 11646 | -4/Factory | Found Prototype Device 11646 | -4/Factory | Identified Exp. ECM Suite 11724 | -4/Factory | Discovered new exit (range 4) 11745 | -4/Factory | Zion Recon squad teleported in 11875 | -4/Factory | Entered Research 11875 | -3/Research | Evolved 2 slots: Propulsion x1, Utility x1 11995 | -3/Research | Garrison activated, responded to threat 12051 | -3/Research | Build established: Gunner 12258 | -3/Research | Spotted B-86 Titan 12314 | -3/Research | Discovered new exit (range 15) 12414 | -3/Research | Discovered new exit (range 15) 12417 | -3/Research | Lost 4 parts (3n1u) 12464 | -3/Research | Entered another Research area 12464 | -2/Research | Evolved 2 slots: Power x1, Utility x1 12503 | -2/Research | Build established: Scavenger-Tank 12530 | -2/Research | Retrieved Zion intel report: Prototype Schematics 12531 | -2/Research | Zion Fire squad teleported in 12982 | -2/Research | Lost 3 parts (3u) 13053 | -2/Research | Build established: Scavenger-Gunner 13168 | -2/Research | Found Prototype Launcher 13319 | -2/Research | Lost 3 parts (1n2u) 13450 | -2/Research | Zion Hacker squad teleported in 13671 | -2/Research | Found Fusion Bomb Launcher 13719 | -2/Research | Zion Heavy squad teleported in 13739 | -2/Research | Spotted B-90 Cyclops 13752 | -2/Research | Destroyed B-90 Cyclops 13776 | -2/Research | Discovered new exit (range 9) 13788 | -2/Research | Entered Quarantine 13788 | -2/Quarantine | Accompanied by 3 allies 13803 | -2/Quarantine | Found Alien Artifact 13803 | -2/Quarantine | Identified Subatomic Replicator 14030 | -2/Quarantine | Found Alien Energy Cannon 14030 | -2/Quarantine | Identified Core Cannon 14204 | -2/Quarantine | Spotted Alpha 7 14208 | -2/Quarantine | Enhanced Grunt warped into view, answering call for help 14212 | -2/Quarantine | Enhanced Grunt warped into view, answering call for help 14214 | -2/Quarantine | Allies destroyed Alpha 7 14281 | -2/Quarantine | Found Alien Launcher 14299 | -2/Quarantine | Identified Sigix Terminator 14329 | -2/Quarantine | Met incapacitated Sigix Warrior 14329 | -2/Quarantine | Lockdown squad dispatched 14337 | -2/Quarantine | Acquired the access code to the Sigix quarantine chamber 14340 | -2/Quarantine | Unlocked Sigix quarantine chamber 14347 | -2/Quarantine | Used Subatomic Replicator to replicate Sigix Containment Pod 14394 | -2/Quarantine | Spotted Lightning 14395 | -2/Quarantine | Spotted Lightning 14398 | -2/Quarantine | Spotted Lightning 14404 | -2/Quarantine | System corruption reached 10% 14448 | -2/Quarantine | Fired Sigix Terminator 14448 | -2/Quarantine | Destroyed Lightning 14448 | -2/Quarantine | Destroyed Lightning 14448 | -2/Quarantine | Destroyed Lightning 14469 | -2/Quarantine | Destroyed 8 combat bots 14479 | -2/Quarantine | Lost 3 parts (1n1u1w) 14538 | -2/Quarantine | First assault squad dispatched 14591 | -2/Quarantine | Retrieved Zion intel report: Depthwide Sectors/0 14763 | -2/Quarantine | Retrieved Zion intel report: Component Stockpiles 14874 | -2/Quarantine | System corruption reached 30% 14946 | -2/Quarantine | High security lockdown imminent 14966 | -2/Quarantine | Lost 16 parts (3p3n7u3w) 14967 | -2/Quarantine | Destroyed 11 combat bots 15026 | -2/Quarantine | High security lockdown engaged 15212 | -2/Quarantine | Core integrity fell below 50% 15234 | -2/Quarantine | Spotted Fortress 15247 | -2/Quarantine | Lost 14 parts (1p6n2u5w) 15268 | -2/Quarantine | Discovered new exit (range 5) 15271 | -2/Quarantine | Entered Section 7 15301 | -2/Section 7 | Spotted B-90 Cyclops 15328 | -2/Section 7 | Core integrity fell below 20% 15349 | -2/Section 7 | Destroyed by H-81 Overseer with Heavy Linear Accelerator Last Messages --------------- 15304_ K-01 Serf cleans the Cell Assembler. 15310_ W-44 Eye sends out distress signal. 15311_ Slug penetrates Wall. 15312_ Triggered Segregator Trap. 15312_ Arcs of energy rise from the floor. 15312_ Triggered Segregator Trap. 15312_ Arcs of energy rise from the floor. 15314_ Slammed into W-44 Eye. 15317_ System corrupted: Substantial component data lost. 15317_ Detecting system override signal. 15326_ ALERT: Suspicious activity at Terminal 7009. Dispatching Investigation squad. 15326_ O-24 Administrator resets terminal and reports anomaly. 15326_ O-24 Administrator locks terminal. 15327_ Critical hit (Burn: +37). 15334_ 2OS4,U4PSH/BKARNH0SO&M>BRYT 15335_ ALERT: Hostiles spotted, dispatching reinforcements to Terminal 7021. 15346_ Knocked back. [Achievement: 20k Club] Map ----- +----------------------------------------------------+ | ??????#+#????#+## #??????????????????????????? | | ??????# #????# ## #??????????????????????????? | | ??????# #????# ## #??????????????????????????? | | ????### ###### ## #??????????????????????????? | | ????# # #??????????????????????????? | | ????# # #??????????????????????????? | | ##### """ + ##########?????????????????? | | "T" # ## ?????????????????? | | ##### # !## """ "?????????????????? | | ????# # ## """ """ ??????????????? | | ????# """"""" ###/#### """ """ ??????????????? | | ????# """"""" + """ """ #?????????????? | | ????# """"""" # """ """ #?????????????? | | ????# + """ """ #?????????????? | | ????+ # """ """ #?????????????? | | ????# ########## # #?????????????? | | ""??# #????????# # ] #?????????????? | | ""??# ?????????# # #?????????????? | | # ?????????# # #?????????????? | | ????? ?????????# # % #?????????????? | | ????? ?????????# ####+########?????????????? | | ????? ??????????# #??# #????????????????????? | | ??????????????????# #??# #????????????????????? | | ??????????????????# #?##%##???????????????????? | | ??????????????????# ### #???????????????????? | | ??????????????????# %@ H #???????????????????? | | ???????????????# ### #???????????????????? | | ???????????????# ????#####???????????????????? | | ???????????????# ???????????????????????????????? | | ?????????????????????????????????????????????????? | | ?????????????????????????????????????????????????? | | ?????????????????????????????????????????????????? | | ?????????????????????????????????????????????????? | | ?????????????????????????????????????????????????? | | ?????????????????????????????????????????????????? | | ?????????????????????????????????????????????????? | | ?????????????????????????????????????????????????? | | ?????????????????????????????????????????????????? | | ?????????????????????????????????????????????????? | | | | | | | | | | | | | | | | | | | | | | | +----------------------------------------------------+ Best States ------------- Heat Dissipation 163 Energy Generation 45 Energy Capacity 700 Matter Stores 700 Matter Capacity 700 Sight Range 16 Terrain Scan Range 16 Terrain Scan Density 210 ECM Strength 3 Jamming Range 14 Armor Coverage 600 Resistance: KI 30 Resistance: TH 25 Resistance: EX 25 Resistance: EM 15 Core Shielding 30 Propulsion Shielding 33 Phase Shifting 10 Evasion (%) 55 Targeting Accuracy 18 Target Analysis 12 Recoil Reduction 6 Matter Filtering 30 Kinecelleration 40 Item Schematics ----------------- Lrg. Storage Unit | -8/Materials | Hacked Katana | -7/Factory | Scanalyzed Titanium Leg | -7/Factory | Scanalyzed Exp. Power Amplifier | -2/Research | Z-intel Helical Railgun | -2/Research | Z-intel Imp. Lightning Gun | -2/Research | Z-intel Exp. Cooling System | -2/Research | Z-intel Exp. Targeting Computer | -2/Research | Z-intel Cld. Q-thruster | -2/Research | Z-intel Exp. Q-thruster | -2/Research | Z-intel Centrium Heavy Treads | -2/Research | Z-intel Coolant Network | -2/Research | Z-intel Imp. Matter Neutralizer | -2/Research | Z-intel Robot Schematics ------------------ None Fabricated ------------ Nothing Alien Tech Used ----------------- Subatomic Replicator Core Cannon Sigix Terminator Achievements -------------- 20k Club False Reunion Hard Hitter Help From High Places Nope Tank Challenges ------------ None Game ------ Seed TeslaSubatomicRail Manual? 0 Play Time 02:29:01 Cumulative 30.7 hours Start 2022.03.22 @ 22:42:36 End 2022.03.23 @ 01:20:27 Sessions 1 Manual Loads 0 Difficulty Rogue Special Mode None Game No. 24 Rogue 24 Adventurer 0 Explorer 0 Win Type - Total 1 Types 1/0/0/0/0/0/0/0/0 Lore% 44 Gallery% 40 Achievement% 42 Wizard Run 0 Options --------- ASCII 0 Keyboard 1 Movement Vi Keybinds 0 Fullscreen 2 Font 24/Proggy Map View 76x50 Tactical HUD 1 Map Filters NONE Filters NONE Steam 1 RUN: 51c7d7f9-5230-4f89-bf6e-8c7c1bc261df